fUSD/lending_fUSD_20251023
["ID","MTS","AMOUNT","RATE_DAILY","PERIOD"]
[392129548,1761191441593,-628.3682761,0.00043999,120]
[392129549,1761191441604,-300.0,0.00043999,30]
[392129550,1761191441614,-598.31,0.00043999,120]
[392129551,1761191441625,-163.137273,0.00043999,120]
[392129552,1761191441635,-151.0,0.00043999,120]
[392129553,1761191441646,-151.0,0.00043999,120]
[392129554,1761191441656,-151.0,0.00043999,120]
[392129555,1761191441667,-500.0,0.00043999,120]
[392129556,1761191441679,-500.0,0.00043999,120]
[392129557,1761191441689,-500.0,0.00043999,120]
[392129558,1761191441698,-500.0,0.00043999,120]
[392129559,1761191441708,-502.2882025,0.00043999,120]
[392129560,1761191441718,-908.34,0.00043999,120]
[392129561,1761191441729,-908.34,0.00043999,120]
[392129562,1761191441740,-908.34,0.00043999,120]
[392129563,1761191441751,-168632.10816945,0.00044,120]
[392129564,1761191441760,-17399.5310165,0.00044,2]
[392129565,1761191441861,-170.91347859,0.00035453,2]
[392129566,1761191441873,-305.31808273,0.00035453,2]
[392129567,1761191441882,-170.87191717,0.00044,2]
[392129568,1761191441893,-378.66,0.00044,2]
[392129569,1761191441904,-1339.94079801,0.00044,2]
[392129570,1761191441915,-1902.07,0.00044,2]
[392129571,1761191441926,-607.59630796,0.00044,2]
[392129572,1761191441938,-3464.4454591,0.00044,2]
[392129573,1761191441949,-2860.95238278,0.00044,2]
[392129574,1761191441961,-776.42636932,0.00044,2]
[392129575,1761191441973,-2532.16610773,0.00044,2]
[392129576,1761191441986,-952.2608773,0.00044,2]
[392129577,1761191441998,-5122.12676512,0.00044,2]
[392129582,1761191443291,-151.0,0.0004399,120]
[392129583,1761191443301,-187.124723,0.0004399,120]
[392129584,1761191443311,-151.0,0.0004399,30]
[392129585,1761191443321,-298.799216,0.00043998,120]
[392129586,1761191443331,-187.124723,0.00043998,120]
[392129587,1761191443341,-151.0,0.00043998,30]
[392129588,1761191443350,-26.14726514,0.00044,2]
[392129589,1761191443447,-152.639433,0.0004399,120]
[392129590,1761191443459,-32619.36673807,0.00044,2]
[392129591,1761191443472,-29714.13018875,0.00044,2]
[392129592,1761191443501,-1000.0,0.00044,2]
[392129593,1761191443643,-505.43218592,0.00044,2]
[392129594,1761191446273,-187.124723,0.0004399,120]
[392129595,1761191446283,-151.0,0.0004399,30]
[392129596,1761191446292,-187.124723,0.0004399,120]
[392129597,1761191446303,-151.0,0.0004399,120]
[392129598,1761191446312,-151.0,0.0004399,30]
[392129599,1761191446322,-187.124723,0.00043998,120]
[392129600,1761191446331,-151.0,0.00043998,30]
[392129601,1761191446341,-3862.24218868,0.00044,2]
[392129602,1761191446373,-645.03979732,0.00044,2]
[392129603,1761191446643,-187.124723,0.00043998,120]
[392129604,1761191446653,-151.0,0.00043998,120]
[392129605,1761191446662,-151.0,0.00043998,30]
[392129606,1761191446672,-2450.52901737,0.00044,2]
[392129633,1761191510846,195.57,0.00025079,2]
[392129634,1761191885603,2500.0,0.00024949,120]
[392129635,1761191885696,1708.1446641,0.00025647,120]
[392129636,1761192206141,179.23532698,0.00035874,120]
[392129637,1761192236528,347.83918691,0.00035874,120]
[392129638,1761192340138,-498.73371339,0.00024832,2]
[392129639,1761192395103,-519.82602056,0.00024732,2]
[392129640,1761192395125,-192.81228048,0.00024832,2]
[392129641,1761192395148,-250.0,0.00024882,2]
[392129642,1761192395169,-355.19505953,0.000249,2]
[392129643,1761192395191,-484.13037023,0.00024932,2]
[392129644,1761192395214,-500.0,0.00024932,2]
[392129645,1761192395237,-150.0,0.00024932,2]
[392129646,1761192395258,-337.5361207,0.00024932,2]
[392129647,1761192395278,-1250.29828,0.00025,2]
[392129648,1761192443084,-803.0,0.0002489,2]
[392129649,1761192443108,-250.0,0.00024945,2]
[392129650,1761192443127,-64.06172,0.00025,2]
[392129651,1761192443147,-4299.28039839,0.00025716,2]
[392129652,1761192443167,-519.82602055,0.00025816,2]
[392129653,1761192443187,-300.0,0.00025839,2]
[392129654,1761192443207,-1200.0,0.00025971,2]
[392129655,1761192443227,-300.0,0.00025971,2]
[392129656,1761192443246,-1200.0,0.00025972,2]
[392129657,1761192443267,-1295.86647507,0.00026174,2]
[392129658,1761192443288,-500.0,0.000262,2]
[392129659,1761192443308,-500.0,0.000262,2]
[392129660,1761192443327,-500.0,0.000262,2]
[392129661,1761192443347,-508.66748208,0.000262,2]
[392129662,1761192443370,-500.0,0.000262,2]
[392129663,1761192443391,-518.58837544,0.000262,2]
[392129664,1761192443416,-500.0,0.000262,2]
[392129665,1761192443436,-500.0,0.000262,2]
[392129666,1761192443457,-144.69225102,0.000262,2]
[392129667,1761192554183,-14887.247771,0.00026002,2]
[392129668,1761192554204,-250.0,0.00026133,2]
[392129669,1761192554223,-300.0,0.00026198,2]
[392129670,1761192554242,-1600.0,0.00026198,2]
[392129671,1761192554263,-500.0,0.00026199,2]
[392129672,1761192554284,-500.0,0.00026199,2]
[392129673,1761192554304,-359.1291185,0.00026199,2]
[392129674,1761192554323,-644.27678641,0.00026199,2]
[392129675,1761192554347,-500.0,0.00026199,2]
[392129676,1761192554366,-500.0,0.00026199,2]
[392129677,1761192554391,-186.83068766,0.00026199,2]
[392129678,1761192554410,-500.0,0.00026199,2]
[392129679,1761192554433,-500.0,0.00026199,2]
[392129680,1761192554620,-500.0,0.00026199,2]
[392129681,1761192554641,-500.0,0.00026199,2]
[392129682,1761192554664,-500.0,0.00026199,2]
[392129683,1761192554688,-500.0,0.00026199,2]
[392129684,1761192554710,-271.90403384,0.00026199,2]
[392129685,1761192554733,-500.0,0.00026199,2]
[392129686,1761192554758,-500.0,0.00026199,2]
[392129687,1761192554782,-500.0,0.00026199,2]
[392129688,1761192554805,-500.0,0.00026199,2]
[392129689,1761192554827,-500.0,0.00026199,2]
[392129690,1761192554850,-567.22299656,0.00026199,2]
[392129691,1761192554875,-500.0,0.00026199,2]
[392129692,1761192554897,-500.0,0.00026199,2]
[392129693,1761192554920,-500.0,0.00026199,2]
[392129694,1761192554943,-500.0,0.00026199,2]
[392129695,1761192554975,-500.0,0.00026199,2]
[392129696,1761192554997,-500.0,0.00026199,2]
[392129697,1761192555020,-500.0,0.00026199,2]
[392129698,1761192555042,-153.55158603,0.00026199,2]
[392129699,1761192565110,-346.44841397,0.00026199,2]
[392129700,1761192565138,-500.0,0.00026199,2]
[392129701,1761192565161,-500.0,0.00026199,2]
[392129702,1761192565183,-500.0,0.00026199,2]
[392129703,1761192565206,-500.0,0.00026199,2]
[392129704,1761192565227,-500.0,0.00026199,2]
[392129705,1761192565248,-500.0,0.00026199,2]
[392129706,1761192565270,-500.0,0.00026199,2]
[392129707,1761192565291,-500.0,0.00026199,2]
[392129708,1761192565312,-500.0,0.00026199,2]
[392129709,1761192565332,-500.0,0.00026199,2]
[392129710,1761192565354,-500.0,0.00026199,2]
[392129711,1761192565375,-500.0,0.00026199,2]
[392129712,1761192565396,-500.0,0.00026199,2]
[392129713,1761192565417,-500.0,0.00026199,2]
[392129714,1761192565438,-500.0,0.00026199,2]
[392129715,1761192565462,-500.0,0.00026199,2]
[392129716,1761192565485,-500.0,0.00026199,2]
[392129717,1761192565507,-500.0,0.00026199,2]
[392129718,1761192565528,-500.0,0.00026199,2]
[392129719,1761192565550,-500.0,0.00026199,2]
[392129720,1761192565576,-500.0,0.00026199,2]
[392129721,1761192565598,-500.0,0.00026199,2]
[392129722,1761192565620,-500.0,0.00026199,2]
[392129723,1761192565642,-500.0,0.00026199,2]
[392129724,1761192565666,-500.0,0.00026199,2]
[392129725,1761192565689,-1200.0,0.00026199,2]
[392129726,1761192565710,-1002.2808994,0.00026201,2]
[392129727,1761192565731,-752.0,0.00026696,2]
[392129728,1761192565756,-519.82602055,0.000269,2]
[392129729,1761192565778,-151.0,0.00026983,2]
[392129730,1761192565797,-151.0,0.00026983,2]
[392129731,1761192565818,-151.0,0.00026983,2]
[392129732,1761192565840,-151.0,0.00026983,2]
[392129733,1761192565860,-151.0,0.00026983,2]
[392129734,1761192565881,-151.0,0.00026983,2]
[392129735,1761192565902,-151.0,0.00026983,2]
[392129736,1761192565924,-151.0,0.00026983,2]
[392129737,1761192565944,-151.0,0.00026983,2]
[392129738,1761192565966,-151.0,0.00026983,2]
[392129739,1761192565989,-151.0,0.00026983,2]
[392129740,1761192566012,-151.0,0.00026983,2]
[392129741,1761192566032,-151.0,0.00026983,2]
[392129742,1761192566053,-291.79566579,0.00026983,2]
[392129743,1761192569076,-1385.54221588,0.00027205,2]
[392129744,1761192569097,-151.0,0.00027308,2]
[392129745,1761192569118,-151.0,0.00027308,2]
[392129746,1761192569142,-151.0,0.00027308,2]
[392129747,1761192569162,-154.10692146,0.00027308,2]
[392129748,1761192569184,-2351.90499891,0.00027315,2]
[392129749,1761192569205,-2500.0,0.00027315,2]
[392129750,1761192569227,-209.55709565,0.00027315,2]
[392129751,1761192569247,-250.0,0.00027379,2]
[392129752,1761192569266,-14745.2047281,0.00028,2]
[392129753,1761192573115,-494.34559836,0.00028,2]
[392129754,1761192573139,-420.0,0.00028107,2]
[392129755,1761192573159,-1680.0,0.00028233,2]
[392129756,1761192573179,-186.0,0.00028346,2]
[392129757,1761192573198,-1680.0,0.00028347,2]
[392129758,1761192573217,-305.16529687,0.00028674,30]
[392129759,1761192573237,-1012.77485524,0.00028674,120]
[392129760,1761192573257,-300.0,0.00028674,120]
[392129761,1761192573280,-300.0,0.00028674,120]
[392129762,1761192573300,-300.0,0.00028674,120]
[392129763,1761192573324,-300.0,0.00028674,120]
[392129764,1761192573345,-300.0,0.00028674,120]
[392129765,1761192573366,-250.0,0.00028674,2]
[392129766,1761192573387,-982.68398953,0.00028747,120]
[392129767,1761192605680,1669.11,0.00019478,2]
[392129768,1761192605878,1669.11,0.00020503,2]
[392129769,1761192606096,1669.11,0.00021529,2]
[392129770,1761192606292,1669.11,0.00022554,2]
[392129771,1761192606696,1669.11,0.00023579,2]
[392129772,1761192606888,1669.11,0.00024604,2]
[392129773,1761192607089,1669.11,0.00025629,2]
[392129774,1761192607285,1669.11,0.00026654,2]
[392129794,1761192631413,-1669.11,0.0002768,2]
[392129795,1761192631423,-1669.11,0.00028705,2]
[392129796,1761192631433,-876.47389705,0.00028747,120]
[392129797,1761192631446,-150.0,0.00028747,120]
[392129798,1761192631456,-250.0,0.00028914,2]
[392129799,1761192631466,-300.0,0.00029081,120]
[392129800,1761192631476,-798.817,0.00029416,22]
[392129801,1761192631486,-250.0,0.00029583,2]
[392129802,1761192631495,-1669.11,0.0002973,2]
[392129803,1761192631505,-213.77276872,0.00029905,120]
[392129804,1761192631515,-2063.0,0.0003,120]
[392129805,1761192631524,-418.93048425,0.00030672,2]
[392129806,1761192631535,-299.99,0.00030672,2]
[392129807,1761192631546,-500.0,0.00030672,2]
[392129808,1761192631748,-287.44003504,0.00030672,2]
[392129809,1761192631763,-844.63948071,0.00030672,2]
[392129810,1761192631772,-1600.0,0.00030691,2]
[392129811,1761192631782,-400.0,0.00030691,2]
[392129812,1761192631791,-1669.11,0.00030755,2]
[392129813,1761192631800,-300.0,0.00031621,120]
[392129814,1761192631809,-250.0,0.00031621,2]
[392129815,1761192631819,-394.74805058,0.0003178,2]
[392129816,1761192631837,-1274.36194942,0.0003178,2]
[392129817,1761192631846,-1669.11,0.00032806,2]
[392129818,1761192631855,-456.52805058,0.00033055,3]
[392129819,1761192631866,-103.47194942,0.00033055,3]
[392129820,1761192631878,-634.0,0.00033187,3]
[392129821,1761192631888,-2240.0,0.00033194,3]
[392129822,1761192631897,-500.0,0.00033573,2]
[392129823,1761192631906,-1669.11,0.00033831,2]
[392129824,1761192631916,-6066.7,0.00033844,2]
[392129825,1761192631925,-1269.36,0.00033844,2]
[392129826,1761192631934,-5591.74,0.00033844,2]
[392129827,1761192631944,-250.0,0.00033927,2]
[392129828,1761192631953,-198.0,0.00034009,2]
[392129829,1761192631962,-2710.56087694,0.00034649,2]
[392129830,1761192631971,-470.59468312,0.0003465,2]
[392129831,1761192631980,-1669.11,0.00034856,2]
[392129832,1761192631989,-476.23156132,0.00034942,2]
[392129833,1761192631998,-9999.99,0.00035455,2]
[392129834,1761192632008,-150.99,0.00035455,2]
[392129835,1761192632018,-1000.0,0.000356,2]
[392129836,1761192632027,-783.0,0.000356,3]
[392129837,1761192632036,-1669.11,0.00035881,2]
[392129838,1761192632046,-1700.23855144,0.000359,2]
[392129839,1761192632058,-1396.0,0.000359,3]
[392129840,1761192632068,-419.18,0.00036318,2]
[392129841,1761192632077,-279.66,0.00036573,2]
[392129842,1761192632087,-1000.0,0.00036745,2]
[392129843,1761192632097,-1426.7596919,0.00036759,2]
[392129844,1761192632106,-18383.22,0.00036786,7]
[392129845,1761192632116,-368.26,0.00036839,2]
[392129846,1761192632125,-15070.73,0.00036863,2]
[392129847,1761192632135,-1669.11,0.00036906,2]
[392129848,1761192632145,-201.27,0.00036958,2]
[392129849,1761192632155,-506.15167206,0.000371,3]
[392129850,1761192632165,-166.66,0.00037397,30]
[392129851,1761192632174,-1669.11,0.00037931,2]
[392129852,1761192632184,-166.66,0.00038184,30]
[392129853,1761192632194,-289.0,0.00038342,5]
[392129854,1761192632209,-1095.97753724,0.00038582,5]
[392129855,1761192632218,-9466.81058212,0.00038872,2]
[392129856,1761192632228,-1669.11,0.00038957,2]
[392129857,1761192632239,-166.66,0.00038972,30]
[392129858,1761192632250,-9466.81058206,0.00039542,2]
[392129859,1761192632259,-1992.0,0.000397,2]
[392129860,1761192632270,-500.0,0.00039726,15]
[392129861,1761192632280,-335.89865612,0.00039726,15]
[392129862,1761192632289,-166.66,0.00039759,30]
[392129863,1761192632300,-200.0,0.00039812,2]
[392129864,1761192632310,-223.29,0.00039937,2]
[392129865,1761192632321,-279.66,0.0004015,2]
[392129866,1761192632333,-9466.81058206,0.00040212,15]
[392129867,1761192632343,-150.0,0.00040488,4]
[392129868,1761192632353,-150.0,0.00040488,4]
[392129869,1761192632362,-150.0,0.00040488,4]
[392129870,1761192632372,-150.0,0.00040488,4]
[392129871,1761192632381,-150.0,0.00040488,4]
[392129872,1761192632391,-150.0,0.00040488,4]
[392129873,1761192632402,-150.0,0.00040488,4]
[392129874,1761192632412,-150.0,0.00040488,4]
[392129875,1761192632422,-150.0,0.00040488,4]
[392129876,1761192632433,-150.0,0.00040488,4]
[392129877,1761192632444,-150.0,0.00040488,4]
[392129878,1761192632463,-150.0,0.00040488,4]
[392129879,1761192632473,-150.0,0.00040488,4]
[392129880,1761192632483,-1003.33744048,0.000405,120]
[392129881,1761192632494,-166.66,0.00040546,30]
[392129882,1761192632504,-150.0,0.00040585,7]
[392129883,1761192632514,-150.0,0.00040597,7]
[392129884,1761192632523,-1091.0,0.00040613,5]
[392129885,1761192632533,-150.0,0.00040648,7]
[392129886,1761192632543,-150.0,0.00040661,7]
[392129887,1761192632552,-150.0,0.00040661,7]
[392129888,1761192632562,-150.0,0.00040675,7]
[392129889,1761192632572,-150.0,0.00040683,7]
[392129890,1761192632581,-150.0,0.00040702,7]
[392129891,1761192632590,-150.0,0.00040707,7]
[392129892,1761192632600,-150.0,0.00040713,7]
[392129893,1761192632610,-150.0,0.00040781,7]
[392129894,1761192632619,-150.0,0.00040809,7]
[392129895,1761192632629,-150.0,0.00040817,7]
[392129896,1761192632639,-150.0,0.00040834,7]
[392129897,1761192632648,-150.0,0.00040834,7]
[392129898,1761192632658,-150.0,0.00040863,7]
[392129899,1761192632668,-150.0,0.00040863,7]
[392129900,1761192632679,-150.0,0.00040879,7]
[392129901,1761192632689,-9466.81058206,0.00040881,15]
[392129902,1761192632699,-150.0,0.00040916,7]
[392129903,1761192632708,-150.0,0.00040927,7]
[392129904,1761192632718,-150.0,0.00040938,7]
[392129905,1761192632727,-150.0,0.00040938,7]
[392129906,1761192632737,-150.0,0.0004097,7]
[392129907,1761192632747,-150.0,0.00040977,7]
[392129908,1761192632757,-150.0,0.00041007,7]
[392129909,1761192632767,-150.0,0.00041007,7]
[392129910,1761192632777,-150.0,0.00041036,7]
[392129911,1761192632786,-150.0,0.0004105,7]
[392129912,1761192632795,-150.0,0.00041074,7]
[392129913,1761192632805,-500.0,0.00041089,2]
[392129914,1761192632815,-150.0,0.0004113,30]
[392129915,1761192632825,-150.0,0.0004113,30]
[392129916,1761192632837,-150.0,0.00041146,30]
[392129917,1761192632847,-150.0,0.00041162,30]
[392129918,1761192632856,-150.0,0.00041172,30]
[392129919,1761192632865,-150.0,0.0004118,30]
[392129920,1761192632875,-150.0,0.0004118,30]
[392129921,1761192632884,-150.0,0.00041237,30]
[392129922,1761192632894,-150.0,0.00041237,30]
[392129923,1761192632903,-150.0,0.00041256,30]
[392129924,1761192632914,-150.0,0.0004127,30]
[392129925,1761192632924,-150.0,0.00041291,30]
[392129926,1761192632935,-2673.0,0.00041333,7]
[392129927,1761192632945,-166.66,0.00041334,30]
[392129928,1761192632956,-150.0,0.00041345,30]
[392129929,1761192632966,-150.0,0.00041353,30]
[392129930,1761192632978,-150.0,0.00041353,30]
[392129931,1761192632989,-150.0,0.00041365,30]
[392129932,1761192632999,-150.0,0.00041368,30]
[392129933,1761192633009,-150.0,0.00041387,30]
[392129934,1761192633018,-150.0,0.00041387,30]
[392129935,1761192633028,-350.0,0.00041398,7]
[392129936,1761192633037,-150.0,0.00041425,30]
[392129937,1761192633046,-270.0,0.00041432,2]
[392129938,1761192633056,-270.0,0.00041441,120]
[392129939,1761192633065,-150.0,0.00041452,30]
[392129940,1761192633075,-150.0,0.00041466,30]
[392129941,1761192633084,-150.0,0.00041475,30]
[392129942,1761192633094,-150.0,0.00041526,30]
[392129943,1761192633103,-150.0,0.00041526,30]
[392129944,1761192633113,-9466.81058206,0.00041551,15]
[392129945,1761192633122,-150.0,0.00041559,30]
[392129946,1761192633132,-150.0,0.00041563,30]
[392129947,1761192633141,-150.0,0.00041585,30]
[392129948,1761192633151,-150.0,0.00041612,30]
[392129949,1761192633161,-150.0,0.00041612,30]
[392129950,1761192633171,-150.0,0.00041612,30]
[392129951,1761192633181,-150.0,0.00041612,30]
[392129952,1761192633191,-268.0,0.00041645,120]
[392129953,1761192633204,-270.0,0.00041647,2]
[392129954,1761192633403,-150.0,0.00041661,30]
[392129955,1761192633414,-150.0,0.00041695,30]
[392129956,1761192633424,-150.0,0.00041699,30]
[392129957,1761192633436,-150.0,0.00041699,30]
[392129958,1761192633446,-150.0,0.00041759,30]
[392129959,1761192633456,-150.0,0.00041773,30]
[392129960,1761192633466,-150.0,0.00041773,30]
[392129961,1761192633475,-150.0,0.000418,30]
[392129962,1761192633485,-150.0,0.00041804,30]
[392129963,1761192633495,-350.0,0.00041824,120]
[392129964,1761192633504,-150.0,0.00041837,30]
[392129965,1761192633513,-150.0,0.00041837,30]
[392129966,1761192633523,-150.0,0.00041857,30]
[392129967,1761192633532,-270.0,0.0004186,120]
[392129968,1761192633542,-150.0,0.00041872,30]
[392129969,1761192633555,-150.0,0.00041872,30]
[392129970,1761192633566,-268.0,0.00041893,2]
[392129971,1761192633579,-150.0,0.00041914,30]
[392129972,1761192633588,-150.0,0.00041934,30]
[392129973,1761192633599,-150.0,0.00041955,30]
[392129974,1761192633609,-891.873,0.00041966,2]
[392129975,1761192633620,-487.219,0.00041966,2]
[392129976,1761192633630,-1669.811,0.00041966,2]
[392129977,1761192633641,-150.0,0.00041987,30]
[392129978,1761192633651,-150.0,0.00041987,30]
[392129979,1761192633662,-150.0,0.00041987,30]
[392129980,1761192633671,-270.0,0.00041989,7]
[392129981,1761192633680,-150.0,0.00042024,30]
[392129982,1761192633689,-150.0,0.00042045,30]
[392129983,1761192633697,-150.0,0.00042045,30]
[392129984,1761192633707,-150.0,0.00042052,30]
[392129985,1761192633716,-150.0,0.00042062,30]
[392129986,1761192633725,-268.0,0.00042093,2]
[392129987,1761192633735,-150.0,0.00042094,30]
[392129988,1761192633743,-150.0,0.00042134,30]
[392129989,1761192633752,-150.0,0.0004215,30]
[392129990,1761192633762,-150.0,0.00042175,30]
[392129991,1761192633771,-150.0,0.00042201,30]
[392129992,1761192633780,-150.0,0.00042218,30]
[392129993,1761192633790,-150.0,0.00042218,30]
[392129994,1761192633799,-9466.81058206,0.00042221,15]
[392129995,1761192633809,-150.0,0.00042243,30]
[392129996,1761192633818,-150.0,0.00042248,30]
[392129997,1761192633827,-150.0,0.00042255,30]
[392129998,1761192633836,-150.0,0.00042287,30]
[392129999,1761192633845,-150.0,0.00042287,30]
[392130000,1761192633855,-268.0,0.00042305,2]
[392130001,1761192633863,-150.0,0.00042346,30]
[392130002,1761192633872,-150.0,0.00042353,30]
[392130003,1761192633882,-150.0,0.00042362,30]
[392130004,1761192633891,-150.0,0.00042362,30]
[392130005,1761192633900,-150.0,0.00042391,30]
[392130006,1761192633910,-150.0,0.00042391,30]
[392130007,1761192633919,-150.0,0.00042416,30]
[392130008,1761192633929,-150.0,0.00042416,30]
[392130009,1761192633943,-150.0,0.00042444,30]
[392130010,1761192633952,-150.0,0.00042463,30]
[392130011,1761192633962,-150.0,0.00042512,30]
[392130012,1761192633971,-150.0,0.00042541,30]
[392130013,1761192633983,-270.0,0.0004255,2]
[392130014,1761192633993,-150.0,0.0004255,30]
[392130015,1761192634002,-150.0,0.00042564,30]
[392130016,1761192634013,-150.0,0.00042564,30]
[392130017,1761192634023,-150.0,0.00042572,30]
[392130018,1761192634033,-150.0,0.00042576,30]
[392130019,1761192634042,-268.0,0.00042578,7]
[392130020,1761192634052,-150.0,0.0004263,30]
[392130021,1761192634061,-150.0,0.00042639,30]
[392130022,1761192634070,-268.0,0.00042665,7]
[392130023,1761192634079,-150.0,0.00042682,30]
[392130024,1761192634088,-150.0,0.00042737,30]
[392130025,1761192634097,-150.0,0.00042737,30]
[392130026,1761192634107,-150.0,0.00042737,30]
[392130027,1761192634116,-150.0,0.00042737,30]
[392130028,1761192634125,-150.0,0.00042737,30]
[392130029,1761192634135,-150.0,0.00042737,30]
[392130030,1761192634145,-150.0,0.00042737,30]
[392130031,1761192634155,-150.0,0.00042737,30]
[392130032,1761192634164,-150.0,0.00042737,30]
[392130033,1761192634174,-1091.0,0.0004275,30]
[392130034,1761192634183,-268.0,0.00042772,2]
[392130035,1761192634192,-150.0,0.00042792,30]
[392130036,1761192634205,-270.0,0.0004282,7]
[392130037,1761192634215,-150.0,0.00042835,30]
[392130038,1761192634224,-150.0,0.00042844,30]
[392130039,1761192634234,-9466.81058206,0.00042891,15]
[392130040,1761192634243,-150.0,0.00042898,30]
[392130041,1761192634253,-150.0,0.00042902,30]
[392130042,1761192634262,-150.0,0.0004291,30]
[392130043,1761192634272,-150.0,0.0004291,30]
[392130044,1761192634281,-150.0,0.00042924,30]
[392130045,1761192634290,-1003.33744048,0.00042929,120]
[392130046,1761192634300,-150.0,0.00042933,30]
[392130047,1761192634310,-150.0,0.00042962,30]
[392130048,1761192634323,-163.0,0.00043,90]
[392130049,1761192634332,-150.0,0.00043011,30]
[392130050,1761192634343,-163.0,0.00043014,90]
[392130051,1761192634353,-150.0,0.0004303,30]
[392130052,1761192634364,-150.0,0.00043058,30]
[392130053,1761192634373,-150.0,0.00043058,30]
[392130054,1761192634383,-150.0,0.00043083,30]
[392130055,1761192634392,-150.0,0.00043083,30]
[392130056,1761192634401,-150.0,0.00043112,30]
[392130057,1761192634411,-150.0,0.00043112,30]
[392130058,1761192634421,-150.0,0.00043121,30]
[392130059,1761192634431,-150.0,0.00043128,30]
[392130060,1761192634440,-47.38746119,0.0004313,2]
[392130061,1761192634456,-11805.06953547,0.0004313,2]
[392130062,1761192634466,-150.0,0.00043187,30]
[392130063,1761192634475,-150.0,0.00043187,30]
[392130064,1761192634485,-150.0,0.00043219,30]
[392130065,1761192634495,-150.0,0.00043226,30]
[392130066,1761192634505,-150.0,0.00043231,30]
[392130067,1761192634515,-150.0,0.00043256,30]
[392130068,1761192634525,-150.0,0.00043256,30]
[392130069,1761192634535,-150.0,0.00043273,30]
[392130070,1761192634546,-150.0,0.00043299,30]
[392130071,1761192634556,-150.0,0.00043324,30]
[392130072,1761192634566,-150.0,0.0004334,30]
[392130073,1761192634575,-268.0,0.00043361,2]
[392130074,1761192634586,-150.0,0.0004338,30]
[392130075,1761192634596,-150.0,0.00043412,30]
[392130076,1761192634605,-150.0,0.00043422,30]
[392130077,1761192634616,-150.0,0.00043429,30]
[392130078,1761192634625,-150.0,0.00043429,30]
[392130079,1761192634635,-150.0,0.0004345,30]
[392130080,1761192634644,-150.0,0.00043487,30]
[392130081,1761192634653,-150.0,0.00043487,30]
[392130082,1761192634663,-150.0,0.00043487,30]
[392130083,1761192634676,-150.0,0.00043519,30]
[392130084,1761192634687,-150.0,0.0004354,30]
[392130085,1761192634696,-150.0,0.0004356,30]
[392130086,1761192634706,-1026.3022,0.0004356,19]
[392130087,1761192634715,-9466.81058206,0.0004356,15]
[392130088,1761192634725,-150.0,0.00043602,30]
[392130089,1761192634735,-150.0,0.00043602,30]
[392130090,1761192634745,-150.0,0.00043617,30]
[392130091,1761192634754,-150.0,0.00043637,30]
[392130092,1761192634764,-150.0,0.00043637,30]
[392130093,1761192634774,-631.0,0.0004365,30]
[392130094,1761192634784,-150.0,0.0004367,30]
[392130095,1761192634794,-150.0,0.00043674,30]
[392130096,1761192634803,-150.0,0.00043701,30]